lending/lending_fUSD_20240411
["ID","MTS","AMOUNT","RATE_DAILY","PERIOD"]
[322167121,1712861443767,-1179.66,0.00030136,2]
[322167122,1712861443776,-500.0,0.00030136,2]
[322167123,1712861443785,-1515.31,0.00030136,2]
[322167124,1712861443795,-500.0,0.00030136,2]
[322167125,1712861443805,-500.0,0.00030136,2]
[322167126,1712861443818,-500.0,0.00030136,2]
[322167127,1712861443827,-727.24,0.00030136,2]
[322167128,1712861443837,-1251.92,0.00030136,2]
[322167129,1712861443846,-500.0,0.00030136,2]
[322167130,1712861443857,-3000.75,0.00030136,2]
[322167131,1712861443867,-500.0,0.00030136,2]
[322167132,1712861443880,-1502.77,0.00030136,2]
[322167133,1712861443890,-500.0,0.00030136,2]
[322167134,1712861443899,-1242.84,0.00030136,2]
[322167135,1712861443908,-1533.43,0.00030136,2]
[322167136,1712861443919,-500.0,0.00030136,2]
[322167137,1712861443928,-1130.86,0.00030136,2]
[322167138,1712861443937,-500.0,0.00030136,2]
[322167139,1712861443946,-500.0,0.00030136,2]
[322167140,1712861443957,-500.0,0.00030136,2]
[322167141,1712861443967,-500.0,0.00030136,2]
[322167142,1712861443976,-500.0,0.00030136,2]
[322167143,1712861443985,-500.0,0.00030136,2]
[322167144,1712861443994,-500.0,0.00030136,2]
[322167145,1712861444004,-1818.19,0.00030136,2]
[322167146,1712861444013,-500.0,0.00030136,2]
[322167147,1712861444023,-500.0,0.00030136,2]
[322167148,1712861444032,-954.72,0.00030136,2]
[322167149,1712861444042,-500.0,0.00030136,2]
[322167150,1712861444051,-554.56483441,0.00030136,2]
[322167151,1712861444063,-500.0,0.00030136,2]
[322167152,1712861444072,-500.0,0.00030136,2]
[322167153,1712861444082,-2227.55,0.00030136,2]
[322167154,1712861444091,-500.0,0.00030136,2]
[322167155,1712861444101,-1386.37,0.00030136,2]
[322167156,1712861444111,-2062.26,0.00030136,2]
[322167157,1712861444122,-552.12,0.00030136,2]
[322167158,1712861444134,-500.0,0.00030136,2]
[322167159,1712861444144,-1068.52,0.00030136,2]
[322167160,1712861444153,-1373.23,0.00030136,2]
[322167161,1712861444162,-665.6,0.00030136,2]
[322167162,1712861444172,-500.0,0.00030136,2]
[322167163,1712861444181,-1138.44,0.00030136,2]
[322167164,1712861444190,-500.0,0.00030136,2]
[322167165,1712861444199,-532.02,0.00030136,2]
[322167166,1712861444209,-500.0,0.00030136,2]
[322167167,1712861444218,-1815.81,0.00030136,2]
[322167168,1712861444227,-504.04,0.00030136,2]
[322167169,1712861444236,-500.0,0.00030136,2]
[322167170,1712861444246,-500.0,0.00030136,2]
[322167171,1712861444255,-1624.24,0.00030136,2]
[322167172,1712861444264,-1337.73,0.00030136,2]
[322167173,1712861444274,-500.0,0.00030136,2]
[322167174,1712861444283,-510.01582768,0.00030136,2]
[322167175,1712861444293,-500.0,0.00030136,2]
[322167176,1712861444302,-500.0,0.00030136,2]
[322167177,1712861444314,-500.0,0.00030136,2]
[322167178,1712861444323,-500.0,0.00030136,2]
[322167179,1712861444332,-500.0,0.00030136,2]
[322167180,1712861444341,-1323.34,0.00030136,2]
[322167181,1712861444351,-889.06,0.00030136,2]
[322167182,1712861444361,-500.0,0.00030136,2]
[322167183,1712861444371,-500.0,0.00030136,2]
[322167184,1712861444380,-500.0,0.00030136,2]
[322167185,1712861444390,-500.0,0.00030136,2]
[322167186,1712861444399,-500.0,0.00030136,2]
[322167187,1712861444410,-500.0,0.00030136,2]
[322167188,1712861444419,-506.69,0.00030136,2]
[322167189,1712861444428,-260.05045636,0.00030136,2]
[322167190,1712861444438,-707.66,0.00030136,2]
[322167191,1712861444448,-1006.43,0.00030136,2]
[322167192,1712861444457,-500.0,0.00030136,2]
[322167193,1712861444466,-1650.72,0.00030136,2]
[322167194,1712861444475,-1802.12,0.00030136,2]
[322167195,1712861444484,-585.48,0.00030136,2]
[322167196,1712861444494,-500.0,0.00030136,2]
[322167197,1712861444503,-500.0,0.00030136,2]
[322167198,1712861444513,-1004.6,0.00030136,2]
[322167199,1712861444522,-1150.62,0.00030136,2]
[322167200,1712861444532,-634.36,0.00030136,2]
[322167201,1712861444541,-662.09,0.00030136,2]
[322167202,1712861444551,-500.0,0.00030136,2]
[322167203,1712861444561,-500.0,0.00030136,2]
[322167204,1712861444570,-500.0,0.00030136,2]
[322167205,1712861444579,-500.0,0.00030136,2]
[322167206,1712861444589,-500.0,0.00030136,2]
[322167207,1712861444599,-500.0,0.00030136,2]
[322167208,1712861444609,-2180.04,0.00030136,2]
[322167209,1712861444618,-698.73,0.00030136,2]
[322167210,1712861444628,-500.0,0.00030136,2]
[322167211,1712861444638,-500.0,0.00030136,2]
[322167212,1712861444647,-702.27,0.00030136,2]
[322167213,1712861444660,-572.81,0.00030136,2]
[322167214,1712861444672,-500.0,0.00030136,2]
[322167215,1712861444681,-1329.25,0.00030136,2]
[322167216,1712861444693,-500.0,0.00030136,2]
[322167217,1712861444704,-1930.59,0.00030136,2]
[322167218,1712861444715,-500.0,0.00030136,2]
[322167219,1712861444725,-500.0,0.00030136,2]
[322167220,1712861444737,-1002.35,0.00030136,2]
[322167221,1712861444747,-513.99,0.00030136,2]
[322167222,1712861444757,-500.0,0.00030136,2]
[322167223,1712861444766,-1101.53,0.00030136,2]
[322167224,1712861444775,-1201.99,0.00030136,2]
[322167225,1712861444784,-351.87124883,0.00030136,2]
[322167226,1712861444794,-500.0,0.00030136,2]
[322167227,1712861444805,-500.0,0.00030136,2]
[322167228,1712861444815,-500.0,0.00030136,2]
[322167229,1712861444826,-500.0,0.00030136,2]
[322167230,1712861444837,-500.0,0.00030136,2]
[322167231,1712861444848,-500.0,0.00030136,2]
[322167232,1712861444858,-500.0,0.00030136,2]
[322167233,1712861444870,-500.0,0.00030136,2]
[322167234,1712861444882,-1650.17,0.00030136,2]
[322167235,1712861444893,-1510.99,0.00030136,2]
[322167236,1712861444903,-500.0,0.00030136,2]
[322167237,1712861444914,-500.0,0.00030136,2]
[322167238,1712861444928,-286.66971166,0.00030136,2]
[322167239,1712861444939,-500.0,0.00030136,2]
[322167240,1712861444951,-500.0,0.00030136,2]
[322167241,1712861444961,-897.56,0.00030136,2]
[322167242,1712861444970,-1858.31,0.00030136,2]
[322167243,1712861444981,-640.76,0.00030136,2]
[322167244,1712861444992,-500.0,0.00030136,2]
[322167245,1712861445002,-500.0,0.00030136,2]
[322167246,1712861445012,-728.01,0.00030136,2]
[322167247,1712861445022,-595.46780414,0.00030136,2]
[322167248,1712861445033,-500.0,0.00030136,2]
[322167249,1712861445043,-500.0,0.00030136,2]
[322167250,1712861445052,-500.0,0.00030136,2]
[322167251,1712861445063,-789.04,0.00030136,2]
[322167252,1712861445072,-5531.72,0.00030136,2]
[322167253,1712861445082,-500.0,0.00030136,2]
[322167254,1712861445091,-500.0,0.00030136,2]
[322167255,1712861445100,-500.0,0.00030136,2]
[322167256,1712861445109,-500.0,0.00030136,2]
[322167257,1712861445119,-4419.45,0.00030136,2]
[322167258,1712861445128,-805.33,0.00030136,2]
[322167259,1712861445138,-541.77,0.00030136,2]
[322167260,1712861445147,-500.0,0.00030136,2]
[322167261,1712861445157,-500.0,0.00030136,2]
[322167262,1712861445167,-2512.28,0.00030136,2]
[322167263,1712861445176,-500.0,0.00030136,2]
[322167264,1712861445186,-1046.52,0.00030136,2]
[322167265,1712861445195,-1941.76,0.00030136,2]
[322167266,1712861445207,-849.43,0.00030136,2]
[322167267,1712861445217,-500.0,0.00030136,2]
[322167268,1712861445228,-500.0,0.00030136,2]
[322167269,1712861445237,-500.0,0.00030136,2]
[322167270,1712861445248,-1929.73,0.00030136,2]
[322167271,1712861445258,-500.0,0.00030136,2]
[322167272,1712861445268,-500.0,0.00030136,2]
[322167273,1712861445279,-2352.67,0.00030136,2]
[322167274,1712861445289,-500.0,0.00030136,2]
[322167275,1712861445300,-1894.57,0.00030136,2]
[322167276,1712861445311,-500.0,0.00030136,2]
[322167277,1712861445321,-1141.85,0.00030136,2]
[322167278,1712861445330,-500.0,0.00030136,2]
[322167279,1712861445339,-500.0,0.00030136,2]
[322167280,1712861445348,-500.0,0.00030136,2]
[322167281,1712861445357,-2117.37,0.00030136,2]
[322167282,1712861445367,-558.66,0.00030136,2]
[322167283,1712861445378,-821.19,0.00030136,2]
[322167284,1712861445387,-433.55,0.00030136,2]
[322167285,1712861445396,-1357.3,0.00030136,2]
[322167286,1712861445407,-500.0,0.00030136,2]
[322167287,1712861445416,-500.0,0.00030136,2]
[322167288,1712861445425,-1129.83,0.00030136,2]
[322167289,1712861445435,-500.0,0.00030136,2]
[322167290,1712861445444,-500.0,0.00030136,2]
[322167291,1712861445454,-1596.27,0.00030136,2]
[322167292,1712861445463,-500.0,0.00030136,2]
[322167293,1712861445472,-500.0,0.00030136,2]
[322167294,1712861445482,-1377.86,0.00030136,2]
[322167295,1712861445492,-4561.55,0.00030136,2]
[322167296,1712861445502,-1031.7,0.00030136,2]
[322167297,1712861445511,-56104.23,0.00030136,2]
[322167298,1712861445521,-2129.67,0.00030136,2]
[322167299,1712861445530,-500.0,0.00030136,2]
[322167300,1712861445539,-1912.0,0.00030136,2]
[322167301,1712861445548,-6595.44,0.00030136,2]
[322167302,1712861445559,-500.0,0.00030136,2]
[322167303,1712861445568,-876.47,0.00030136,2]
[322167304,1712861445577,-500.0,0.00030136,2]
[322167305,1712861445587,-500.0,0.00030136,2]
[322167306,1712861445596,-4641.6,0.00030136,2]
[322167307,1712861445605,-500.0,0.00030136,2]
[322167308,1712861445615,-500.0,0.00030136,2]
[322167309,1712861445624,-500.0,0.00030136,2]
[322167310,1712861445633,-4281.0,0.00030136,2]
[322167311,1712861445642,-500.0,0.00030136,2]
[322167312,1712861445652,-500.0,0.00030136,2]
[322167313,1712861445661,-18750.69,0.00030136,2]
[322167314,1712861445671,-500.0,0.00030136,2]
[322167315,1712861445680,-500.0,0.00030136,2]
[322167316,1712861445689,-500.0,0.00030136,2]
[322167317,1712861445698,-4212.16,0.00030136,2]
[322167318,1712861445708,-500.0,0.00030136,2]
[322167319,1712861445718,-1684.05,0.00030136,2]
[322167321,1712861445727,-500.0,0.00030136,2]
[322167323,1712861445736,-500.0,0.00030136,2]
[322167325,1712861445745,-579.04,0.00030136,2]
[322167327,1712861445754,-13019.19,0.00030136,2]
[322167329,1712861445763,-628.17,0.00030136,2]
[322167331,1712861445772,-500.0,0.00030136,2]
[322167333,1712861445781,-1324.86,0.00030136,2]
[322167335,1712861445790,-797.83,0.00030136,2]
[322167337,1712861445799,-500.0,0.00030136,2]
[322167339,1712861445810,-10327.65,0.00030136,2]
[322167341,1712861445819,-500.0,0.00030136,2]
[322167343,1712861445828,-500.0,0.00030136,2]
[322167345,1712861445838,-3967.38,0.00030136,2]
[322167347,1712861445847,-7120.59,0.00030136,2]
[322167349,1712861445857,-500.0,0.00030136,2]
[322167351,1712861445867,-500.0,0.00030136,2]
[322167353,1712861445880,-670.78,0.00030136,2]
[322167356,1712861445890,-1747.26,0.00030136,2]
[322167358,1712861445899,-2988.62,0.00030136,2]
[322167360,1712861445909,-1176.06,0.00030136,2]
[322167368,1712861445982,-4447.93,0.00030136,2]
[322167370,1712861445991,-500.0,0.00030136,2]
[322167371,1712861446001,-1420.43,0.00030136,2]
[322167372,1712861446011,-500.0,0.00030136,2]
[322167373,1712861446020,-500.0,0.00030136,2]
[322167374,1712861446029,-500.0,0.00030136,2]
[322167375,1712861446039,-500.0,0.00030136,2]
[322167376,1712861446048,-6461.1,0.00030136,2]
[322167377,1712861446058,-15146.81,0.00030136,2]
[322167378,1712861446067,-500.0,0.00030136,2]
[322167379,1712861446076,-2178.29,0.00030136,2]
[322167380,1712861446086,-2526.6,0.00030136,2]
[322167381,1712861446095,-2844.03,0.00030136,2]
[322167382,1712861446104,-2589.32,0.00030136,2]
[322167383,1712861446114,-500.0,0.00030136,2]
[322167384,1712861446124,-183.06737781,0.00030136,2]
[322167385,1712861446135,-738.62,0.00030136,2]
[322167386,1712861446144,-500.0,0.00030136,2]
[322167387,1712861446154,-735.21,0.00030136,2]
[322167388,1712861446163,-526.78,0.00030136,2]
[322167389,1712861446173,-795.33,0.00030136,2]
[322167390,1712861446183,-3705.91,0.00030136,2]
[322167391,1712861446193,-11172.59,0.00030136,2]
[322167392,1712861446202,-500.0,0.00030136,2]
[322167393,1712861446212,-3789.8,0.00030136,2]
[322167394,1712861446221,-1926.84,0.00030136,2]
[322167395,1712861446231,-2971.92,0.00030136,2]
[322167396,1712861446241,-3433.08,0.00030136,2]
[322167397,1712861446251,-814.38,0.00030136,2]
[322167398,1712861446262,-2133.19,0.00030136,2]
[322167399,1712861446273,-1346.68,0.00030136,2]
[322167400,1712861446283,-500.0,0.00030136,2]
[322167401,1712861446293,-500.0,0.00030136,2]
[322167402,1712861446303,-500.0,0.00030136,2]
[322167403,1712861446314,-695.4,0.00030136,2]
[322167404,1712861446323,-500.0,0.00030136,2]
[322167405,1712861446333,-7106.79,0.00030136,2]
[322167406,1712861446342,-500.0,0.00030136,2]
[322167407,1712861446352,-1140.22,0.00030136,2]
[322167408,1712861446361,-1449.28,0.00030136,2]
[322167409,1712861446371,-611.97339588,0.00030136,2]
[322167410,1712861446381,-1234.22,0.00030136,2]
[322167411,1712861446390,-2428.72,0.00030136,2]
[322167412,1712861446400,-6678.34,0.00030136,2]
[322167413,1712861446410,-1468.49,0.00030136,2]
[322167414,1712861446420,-500.0,0.00030136,2]
[322167415,1712861446430,-500.0,0.00030136,2]
[322167416,1712861446439,-500.0,0.00030136,2]
[322167417,1712861446449,-1295.28,0.00030136,2]
[322167418,1712861446459,-1446.92,0.00030136,2]
[322167419,1712861446469,-2176.32,0.00030136,2]
[322167420,1712861446478,-4186.67,0.00030136,2]
[322167421,1712861446487,-500.0,0.00030136,2]
[322167422,1712861446497,-500.0,0.00030136,2]
[322167423,1712861446507,-2670.11,0.00030136,2]
[322167424,1712861446516,-713.85,0.00030136,2]
[322167425,1712861446526,-2703.48,0.00030136,2]
[322167426,1712861446535,-1037.64,0.00030136,2]
[322167427,1712861446545,-500.0,0.00030136,2]
[322167428,1712861446554,-500.0,0.00030136,2]
[322167429,1712861446565,-649.76,0.00030136,2]
[322167430,1712861446574,-500.0,0.00030136,2]
[322167431,1712861446583,-500.0,0.00030136,2]
[322167432,1712861446593,-2751.33,0.00030136,2]
[322167433,1712861446602,-2082.18,0.00030136,2]
[322167434,1712861446611,-500.0,0.00030136,2]
[322167435,1712861446621,-6288.79,0.00030136,2]
[322167436,1712861446630,-769.17,0.00030136,2]
[322167437,1712861446639,-500.0,0.00030136,2]
[322167438,1712861446648,-2721.02,0.00030136,2]
[322167439,1712861446658,-3488.95,0.00030136,2]
[322167440,1712861446667,-7403.56,0.00030136,2]
[322167441,1712861446676,-500.0,0.00030136,2]
[322167442,1712861446685,-500.0,0.00030136,2]
[322167443,1712861446694,-5916.83,0.00030136,2]
[322167444,1712861446703,-732.77,0.00030136,2]
[322167445,1712861446713,-3158.74,0.00030136,2]
[322167446,1712861446722,-3822.63,0.00030136,2]
[322167447,1712861446731,-562.57,0.00030136,2]
[322167448,1712861446741,-1962.31,0.00030136,2]
[322167449,1712861446750,-3778.17,0.00030136,2]
[322167450,1712861446759,-949.13,0.00030136,2]
[322167451,1712861446768,-655.93,0.00030136,2]
[322167452,1712861446777,-337.17279691,0.00030136,2]
[322167453,1712861446786,-1079.52,0.00030136,2]
[322167454,1712861446795,-1487.88,0.00030136,2]
[322167455,1712861446804,-1020.06,0.00030136,2]
[322167456,1712861446815,-500.0,0.00030136,2]
[322167457,1712861446824,-11025.46,0.00030136,2]
[322167458,1712861446833,-500.0,0.00030136,2]
[322167459,1712861446843,-500.0,0.00030136,2]
[322167460,1712861446853,-26257.25,0.00030136,2]
[322167461,1712861446862,-307.44894874,0.00030136,2]
[322167462,1712861446874,-1776.67,0.00030136,2]
[322167463,1712861446883,-500.0,0.00030136,2]
[322167464,1712861446892,-500.0,0.00030136,2]
[322167465,1712861446901,-16073.22,0.00030136,2]
[322167466,1712861446911,-500.0,0.00030136,2]
[322167467,1712861446920,-3205.14,0.00030136,2]
[322167468,1712861446929,-768.54,0.00030136,2]
[322167469,1712861446938,-1171.19,0.00030136,2]
[322167470,1712861446949,-500.0,0.00030136,2]
[322167471,1712861446959,-2019.89,0.00030136,2]
[322167472,1712861446968,-500.0,0.00030136,2]
[322167473,1712861446977,-570.84853379,0.00030136,2]
[322167474,1712861446987,-3358.18,0.00030136,2]
[322167475,1712861446996,-500.0,0.00030136,2]
[322167476,1712861447005,-4631.24,0.00030136,2]
[322167477,1712861447015,-500.0,0.00030136,2]
[322167478,1712861447024,-500.0,0.00030136,2]
[322167479,1712861447033,-500.0,0.00030136,2]
[322167480,1712861447042,-500.0,0.00030136,2]
[322167481,1712861447052,-1356.7,0.00030136,2]
[322167482,1712861447062,-500.0,0.00030136,2]
[322167483,1712861447071,-500.0,0.00030136,2]
[322167484,1712861447080,-500.0,0.00030136,2]
[322167485,1712861447089,-3977.11,0.00030136,2]
[322167486,1712861447099,-500.0,0.00030136,2]
[322167487,1712861447108,-3123.02,0.00030136,2]
[322167488,1712861447117,-2774.79,0.00030136,2]
[322167489,1712861447126,-3603.03,0.00030136,2]
[322167490,1712861447136,-734.7,0.00030136,2]
[322167491,1712861447145,-500.0,0.00030136,2]
[322167492,1712861447154,-566.7,0.00030136,2]
[322167493,1712861447164,-539.09004148,0.00030136,2]
[322167494,1712861447174,-2282.3,0.00030136,2]
[322167495,1712861447183,-3588.23,0.00030136,2]
[322167496,1712861447192,-500.0,0.00030136,2]
[322167497,1712861447202,-741.8,0.00030136,2]
[322167498,1712861447211,-500.0,0.00030136,2]
[322167499,1712861447220,-6331.47,0.00030136,2]
[322167500,1712861447229,-689.92,0.00030136,2]
[322167501,1712861447239,-630.18,0.00030136,2]
[322167502,1712861447249,-504.57,0.00030136,2]
[322167503,1712861447258,-20258.02,0.00030136,2]
[322167504,1712861447268,-500.0,0.00030136,2]
[322167505,1712861447277,-3031.44,0.00030136,2]
[322167506,1712861447287,-500.0,0.00030136,2]
[322167507,1712861447296,-500.0,0.00030136,2]
[322167508,1712861447306,-500.0,0.00030136,2]
[322167509,1712861447316,-1456.27,0.00030136,2]
[322167510,1712861447325,-500.0,0.00030136,2]
[322167511,1712861447334,-194.16752508,0.00030136,2]
[322167512,1712861447343,-500.0,0.00030136,2]
[322167513,1712861447352,-500.0,0.00030136,2]
[322167514,1712861447361,-500.0,0.00030136,2]
[322167515,1712861447371,-4030.13,0.00030136,2]
[322167516,1712861447380,-1591.11,0.00030136,2]
[322167517,1712861447389,-992.19,0.00030136,2]
[322167518,1712861447398,-500.0,0.00030136,2]
[322167519,1712861447408,-500.0,0.00030136,2]
[322167520,1712861447418,-500.0,0.00030136,2]
[322167521,1712861447426,-500.0,0.00030136,2]
[322167522,1712861447436,-20278.62,0.00030136,2]
[322167523,1712861447445,-500.0,0.00030136,2]
[322167524,1712861447454,-2429.77,0.00030136,2]
[322167525,1712861447466,-1187.0,0.00030136,2]
[322167526,1712861447475,-7910.17,0.00030136,2]
[322167527,1712861447484,-1357.15,0.00030136,2]
[322167528,1712861447493,-5319.3,0.00030136,2]
[322167529,1712861447502,-19873.77,0.00030136,2]
[322167530,1712861447511,-500.0,0.00030136,2]
[322167531,1712861447520,-829.93,0.00030136,2]
[322167532,1712861447529,-500.0,0.00030136,2]
[322167533,1712861447539,-672.38,0.00030136,2]
[322167534,1712861447547,-6826.92,0.00030136,2]
[322167535,1712861447557,-500.0,0.00030136,2]
[322167536,1712861447567,-500.0,0.00030136,2]
[322167537,1712861447576,-3267.97,0.00030136,2]
[322167538,1712861447586,-9341.73,0.00030136,2]
[322167539,1712861447595,-678.67,0.00030136,2]
[322167540,1712861447604,-500.0,0.00030136,2]
[322167541,1712861447613,-11145.27,0.00030136,2]
[322167542,1712861447622,-676.68,0.00030136,2]
[322167543,1712861447631,-8615.84,0.00030136,2]
[322167544,1712861447645,-4508.19,0.00030136,2]
[322167545,1712861447654,-500.0,0.00030136,2]
[322167546,1712861447663,-500.0,0.00030136,2]
[322167547,1712861447672,-500.0,0.00030136,2]
[322167548,1712861447681,-500.0,0.00030136,2]
[322167549,1712861447690,-506.09889697,0.00030136,2]
[322167550,1712861447699,-1618.56,0.00030136,2]
[322167551,1712861447708,-500.0,0.00030136,2]
[322167552,1712861447717,-1419.56,0.00030136,2]
[322167553,1712861447726,-54968.15,0.00030136,2]
[322167554,1712861447736,-654.68,0.00030136,2]
[322167555,1712861447745,-500.0,0.00030136,2]
[322167556,1712861447754,-2795.92,0.00030136,2]
[322167557,1712861447763,-2278.93,0.00030136,2]
[322167558,1712861447776,-500.0,0.00030136,2]
[322167559,1712861447785,-882.46,0.00030136,2]
[322167560,1712861447794,-500.0,0.00030136,2]
[322167561,1712861447803,-500.0,0.00030136,2]
[322167562,1712861447814,-500.0,0.00030136,2]
[322167563,1712861447824,-4719.95,0.00030136,2]
[322167564,1712861447833,-500.0,0.00030136,2]
[322167565,1712861447843,-1465.17,0.00030136,2]
[322167566,1712861447854,-36150.17,0.00030136,2]
[322167567,1712861447865,-500.0,0.00030136,2]
[322167568,1712861447878,-5875.71,0.00030136,2]
[322167569,1712861447889,-500.0,0.00030136,2]
[322167570,1712861447900,-1335.59,0.00030136,2]
[322167571,1712861447910,-1735.91,0.00030136,2]
[322167572,1712861447921,-2145.31,0.00030136,2]
[322167573,1712861447931,-500.0,0.00030136,2]
[322167574,1712861447942,-598.96,0.00030136,2]
[322167575,1712861447954,-500.0,0.00030136,2]
[322167576,1712861447964,-500.0,0.00030136,2]
[322167577,1712861447974,-1014.26,0.00030136,2]
[322167578,1712861447984,-3199.73,0.00030136,2]
[322167579,1712861447994,-330.73899374,0.00030136,2]
[322167580,1712861448003,-300.0,0.00030136,2]
[322167581,1712861448012,-2177.23,0.00030136,2]
[322167582,1712861448022,-1825.61,0.00030136,2]
[322167583,1712861448032,-1377.69,0.00030136,2]
[322167584,1712861448045,-152.12,0.00030136,2]
[322167585,1712861448055,-500.0,0.00030136,2]
[322167586,1712861448068,-500.0,0.00030136,2]
[322167587,1712861448077,-500.0,0.00030136,2]
[322167588,1712861448085,-2136.33,0.00030136,2]
[322167589,1712861448094,-3468.38,0.00030136,2]
[322167590,1712861448103,-4839.3,0.00030136,2]
[322167591,1712861448112,-500.0,0.00030136,2]
[322167592,1712861448122,-586.60971887,0.00030136,2]
[322167593,1712861448132,-10744.44,0.00030136,2]
[322167594,1712861448143,-500.0,0.00030136,2]
[322167595,1712861448153,-795.68,0.00030136,2]
[322167596,1712861448163,-1387.61,0.00030136,2]
[322167597,1712861448173,-500.0,0.00030136,2]
[322167598,1712861448184,-606.84,0.00030136,2]
[322167599,1712861448194,-1634.33,0.00030136,2]
[322167600,1712861448204,-500.0,0.00030136,2]
[322167601,1712861448214,-2155.81,0.00030136,2]
[322167602,1712861448223,-500.0,0.00030136,2]
[322167603,1712861448232,-8044.02,0.00030136,2]
[322167604,1712861448242,-5984.66,0.00030136,2]
[322167605,1712861448253,-1822.87,0.00030136,2]
[322167606,1712861448262,-2532.26,0.00030136,2]
[322167607,1712861448273,-500.0,0.00030136,2]
[322167608,1712861448283,-2245.06,0.00030136,2]
[322167609,1712861448292,-535.03,0.00030136,2]
[322167610,1712861448301,-709.64,0.00030136,2]
[322167611,1712861448311,-500.0,0.00030136,2]
[322167612,1712861448320,-500.0,0.00030136,2]
[322167613,1712861448330,-3417.76,0.00030136,2]
[322167614,1712861448339,-941.21,0.00030136,2]
[322167615,1712861448348,-1421.23,0.00030136,2]
[322167616,1712861448357,-3366.99,0.00030136,2]
[322167617,1712861448366,-543.86993004,0.00030136,2]
[322167618,1712861448376,-1418.04,0.00030136,2]
[322167619,1712861448385,-541.63414441,0.00030136,2]
[322167620,1712861448395,-500.0,0.00030136,2]
[322167621,1712861448404,-500.0,0.00030136,2]
[322167622,1712861448414,-4083.62,0.00030136,2]
[322167623,1712861448423,-4329.26,0.00030136,2]
[322167624,1712861448432,-500.0,0.00030136,2]
[322167625,1712861448442,-500.0,0.00030136,2]
[322167626,1712861448451,-500.0,0.00030136,2]
[322167627,1712861448461,-500.0,0.00030136,2]
[322167628,1712861448470,-832.4,0.00030136,2]
[322167629,1712861448479,-2360.02,0.00030136,2]
[322167630,1712861448489,-500.0,0.00030136,2]
[322167631,1712861448498,-2143.02,0.00030136,2]
[322167632,1712861448507,-3678.86,0.00030136,2]
[322167633,1712861448516,-500.0,0.00030136,2]
[322167634,1712861448526,-500.0,0.00030136,2]
[322167635,1712861448536,-647.04,0.00030136,2]
[322167636,1712861448547,-500.0,0.00030136,2]
[322167637,1712861448556,-2321.46,0.00030136,2]
[322167638,1712861448566,-1003.39,0.00030136,2]
[322167639,1712861448576,-5217.37,0.00030136,2]
[322167640,1712861448586,-5050.17,0.00030136,2]
[322167641,1712861448596,-500.0,0.00030136,2]
[322167642,1712861448606,-500.0,0.00030136,2]
[322167643,1712861448617,-3630.28,0.00030136,2]
[322167644,1712861448627,-1972.2,0.00030136,2]
[322167645,1712861448636,-500.0,0.00030136,2]
[322167646,1712861448645,-500.0,0.00030136,2]
[322167647,1712861448655,-545.12,0.00030136,2]
[322167648,1712861448665,-500.0,0.00030136,2]
[322167649,1712861448674,-1563.13,0.00030136,2]